[Event "Early-Titled-Tuesday-Blitz-July-09-2024"]
[Site "Chess.com"]
[Date "2024.07.09"]
[Round "5"]
[White "FloMasterAAK"]
[Black "Akewjon"]
[Result "1/2-1/2"]
[WhiteElo "2578"]
[BlackElo "2743"]
[TimeControl "180+1"]
[EndTime "8:59:37 PDT"]
[Termination "Game drawn by stalemate"]

1. e4 {[%clk 0:03:00.9]} 1... e5 {[%clk 0:02:59.3]} 2. Nf3 {[%clk 0:03:00.8]}
2... Nc6 {[%clk 0:03:00]} 3. d4 {[%clk 0:03:01.1]} 3... exd4 {[%clk 0:03:00]} 4.
Nxd4 {[%clk 0:03:01.7]} 4... Nf6 {[%clk 0:03:00.3]} 5. Nxc6 {[%clk 0:03:01.8]}
5... bxc6 {[%clk 0:03:00.8]} 6. e5 {[%clk 0:03:02.2]} 6... Qe7 {[%clk 0:03:01]}
7. Qe2 {[%clk 0:03:02.6]} 7... Nd5 {[%clk 0:03:01.6]} 8. h4 {[%clk 0:03:01.8]}
8... d6 {[%clk 0:02:48.6]} 9. c4 {[%clk 0:03:00.9]} 9... Nb6 {[%clk 0:02:48.5]}
10. exd6 {[%clk 0:03:00.3]} 10... Qxe2+ {[%clk 0:02:45.9]} 11. Bxe2 {[%clk
0:03:01.2]} 11... Bxd6 {[%clk 0:02:34.5]} 12. Nc3 {[%clk 0:02:52.6]} 12... Be6
{[%clk 0:02:29.4]} 13. b3 {[%clk 0:02:50.1]} 13... a5 {[%clk 0:02:29.1]} 14. Bb2
{[%clk 0:02:17.7]} 14... a4 {[%clk 0:02:19.7]} 15. O-O-O {[%clk 0:02:04.3]}
15... O-O {[%clk 0:02:11.9]} 16. Ne4 {[%clk 0:01:46.8]} 16... Bf4+ {[%clk
0:02:08.5]} 17. Kc2 {[%clk 0:01:46.3]} 17... Nd7 {[%clk 0:01:42]} 18. Ng5 {[%clk
0:01:25.8]} 18... Bf5+ {[%clk 0:01:40.9]} 19. Bd3 {[%clk 0:01:21]} 19... axb3+
{[%clk 0:01:39.2]} 20. axb3 {[%clk 0:01:20.4]} 20... Bxd3+ {[%clk 0:01:38.7]}
21. Rxd3 {[%clk 0:01:21.3]} 21... Nc5 {[%clk 0:01:39.4]} 22. Rf3 {[%clk
0:01:19.4]} 22... Bd6 {[%clk 0:01:35.4]} 23. Re1 {[%clk 0:01:01.9]} 23... h6
{[%clk 0:00:54.5]} 24. Ne4 {[%clk 0:01:01.1]} 24... Rfe8 {[%clk 0:00:40.7]} 25.
Rfe3 {[%clk 0:01:00.7]} 25... Rxe4 {[%clk 0:00:39.9]} 26. Rxe4 {[%clk
0:01:00.5]} 26... Nxe4 {[%clk 0:00:40.8]} 27. Rxe4 {[%clk 0:01:01.4]} 27... f5
{[%clk 0:00:41.7]} 28. Re2 {[%clk 0:00:57.9]} 28... Kf7 {[%clk 0:00:42]} 29. Rd2
{[%clk 0:00:49.8]} 29... g5 {[%clk 0:00:39.5]} 30. hxg5 {[%clk 0:00:48.2]} 30...
hxg5 {[%clk 0:00:39.6]} 31. f3 {[%clk 0:00:44.7]} 31... Rg8 {[%clk 0:00:32.2]}
32. Bc3 {[%clk 0:00:30.4]} 32... g4 {[%clk 0:00:28.5]} 33. c5 {[%clk 0:00:17.2]}
33... Bxc5 {[%clk 0:00:20.2]} 34. Rd7+ {[%clk 0:00:18.1]} 34... Ke6 {[%clk
0:00:19.3]} 35. Rxc7 {[%clk 0:00:19]} 35... gxf3 {[%clk 0:00:18.1]} 36. gxf3
{[%clk 0:00:17.9]} 36... Rg3 {[%clk 0:00:08.8]} 37. Rxc6+ {[%clk 0:00:12.7]}
37... Kd5 {[%clk 0:00:09.3]} 38. Rc8 {[%clk 0:00:12.1]} 38... Rxf3 {[%clk
0:00:09.7]} 39. b4 {[%clk 0:00:12.4]} 39... Rf2+ {[%clk 0:00:07.8]} 40. Kb3
{[%clk 0:00:08.9]} 40... Be3 {[%clk 0:00:08.3]} 41. Rd8+ {[%clk 0:00:07.4]}
41... Kc6 {[%clk 0:00:07.9]} 42. Kc4 {[%clk 0:00:06.3]} 42... f4 {[%clk
0:00:08.4]} 43. b5+ {[%clk 0:00:06.4]} 43... Kc7 {[%clk 0:00:08.8]} 44. Rf8
{[%clk 0:00:05.8]} 44... Rf1 {[%clk 0:00:08.7]} 45. Rf7+ {[%clk 0:00:05.9]}
45... Kd8 {[%clk 0:00:08.5]} 46. Ba5+ {[%clk 0:00:05.1]} 46... Ke8 {[%clk
0:00:08.9]} 47. Rf5 {[%clk 0:00:06]} 47... Ke7 {[%clk 0:00:07.8]} 48. b6 {[%clk
0:00:05.8]} 48... Rb1 {[%clk 0:00:08.5]} 49. Bb4+ {[%clk 0:00:04.7]} 49... Ke6
{[%clk 0:00:08.4]} 50. b7 {[%clk 0:00:03.9]} 50... Ba7 {[%clk 0:00:05.9]} 51.
Rxf4 {[%clk 0:00:04.4]} 51... Bb8 {[%clk 0:00:05.4]} 52. Rf8 {[%clk 0:00:04.6]}
52... Bc7 {[%clk 0:00:05.7]} 53. b8=Q {[%clk 0:00:04.4]} 53... Bxb8 {[%clk
0:00:06]} 54. Rxb8 {[%clk 0:00:05.3]} 54... Kd7 {[%clk 0:00:06.6]} 55. Kb5
{[%clk 0:00:06.1]} 55... Kc7 {[%clk 0:00:05.8]} 56. Rh8 {[%clk 0:00:06.7]} 56...
Kb7 {[%clk 0:00:06.1]} 57. Rh7+ {[%clk 0:00:07.1]} 57... Kc8 {[%clk 0:00:06.7]}
58. Kc6 {[%clk 0:00:06.6]} 58... Rd1 {[%clk 0:00:05.9]} 59. Bd6 {[%clk
0:00:06.6]} 59... Rc1+ {[%clk 0:00:05.7]} 60. Bc5 {[%clk 0:00:06.7]} 60... Rd1
{[%clk 0:00:06.4]} 61. Rh8+ {[%clk 0:00:05.7]} 61... Rd8 {[%clk 0:00:06.3]} 62.
Rh2 {[%clk 0:00:06.3]} 62... Rd1 {[%clk 0:00:06]} 63. Ra2 {[%clk 0:00:06.3]}
63... Rb1 {[%clk 0:00:05.4]} 64. Ra8+ {[%clk 0:00:05.6]} 64... Rb8 {[%clk
0:00:05.6]} 65. Ra7 {[%clk 0:00:06.5]} 65... Rb1 {[%clk 0:00:05.7]} 66. Rc7+
{[%clk 0:00:06.3]} 66... Kb8 {[%clk 0:00:05.8]} 67. Rf7 {[%clk 0:00:06.8]} 67...
Ka8 {[%clk 0:00:03.2]} 68. Rf2 {[%clk 0:00:03.2]} 68... Rb2 {[%clk 0:00:02.4]}
69. Rxb2 {[%clk 0:00:03.2]} 1/2-1/2

[Event "Early-Titled-Tuesday-Blitz-July-09-2024"]
[Site "Chess.com"]
[Date "2024.07.09"]
[Round "5"]
[White "Meri-Arabidze"]
[Black "BaylavChess"]
[Result "1-0"]
[WhiteElo "2689"]
[BlackElo "2437"]
[TimeControl "180+1"]
[EndTime "8:59:37 PDT"]
[Termination "Meri-Arabidze won by resignation"]

1. d4 {[%clk 0:03:00.9]} 1... Nf6 {[%clk 0:02:58.3]} 2. c4 {[%clk 0:03:01.4]}
2... e6 {[%clk 0:02:58.4]} 3. Nc3 {[%clk 0:03:01.9]} 3... d5 {[%clk 0:02:58.5]}
4. cxd5 {[%clk 0:03:01.3]} 4... exd5 {[%clk 0:02:58.7]} 5. Bg5 {[%clk
0:03:01.6]} 5... Nbd7 {[%clk 0:02:57.9]} 6. e3 {[%clk 0:03:01.6]} 6... c6 {[%clk
0:02:57.3]} 7. Bd3 {[%clk 0:03:01.3]} 7... Be7 {[%clk 0:02:56.2]} 8. h3 {[%clk
0:03:00.3]} 8... O-O {[%clk 0:02:56.4]} 9. Qc2 {[%clk 0:02:59.4]} 9... h6 {[%clk
0:02:50.1]} 10. Bf4 {[%clk 0:02:59.6]} 10... Re8 {[%clk 0:02:50.3]} 11. Nf3
{[%clk 0:02:57.9]} 11... Nf8 {[%clk 0:02:49.6]} 12. O-O {[%clk 0:02:57.5]} 12...
Ne6 {[%clk 0:02:49.9]} 13. Be5 {[%clk 0:02:54.5]} 13... Bd6 {[%clk 0:02:36.8]}
14. a3 {[%clk 0:02:54.8]} 14... a5 {[%clk 0:02:30.7]} 15. Rab1 {[%clk
0:02:55.1]} 15... Ng5 {[%clk 0:02:18.8]} 16. Nxg5 {[%clk 0:02:48.9]} 16... hxg5
{[%clk 0:02:19.7]} 17. f4 {[%clk 0:02:40.9]} 17... gxf4 {[%clk 0:02:12.1]} 18.
exf4 {[%clk 0:02:40.6]} 18... Nh5 {[%clk 0:01:30.6]} 19. g4 {[%clk 0:02:23.8]}
19... Ng3 {[%clk 0:01:12.6]} 20. Rf3 {[%clk 0:02:23.4]} 20... Bxe5 {[%clk
0:01:05.2]} 21. fxe5 {[%clk 0:02:18.4]} 21... Ne4 {[%clk 0:01:05]} 22. Bxe4
{[%clk 0:02:13.4]} 22... dxe4 {[%clk 0:01:05.5]} 23. Qxe4 {[%clk 0:02:14.2]}
23... Qh4 {[%clk 0:00:55.1]} 24. Rbf1 {[%clk 0:02:09.5]} 24... Be6 {[%clk
0:00:55.1]} 25. Qf4 {[%clk 0:02:00.8]} 25... Rad8 {[%clk 0:00:52.4]} 26. Ne4
{[%clk 0:01:56.1]} 26... Bd5 {[%clk 0:00:45.1]} 27. Re3 {[%clk 0:01:37.6]} 27...
Bxe4 {[%clk 0:00:26.1]} 28. Rxe4 {[%clk 0:01:30.8]} 28... Re7 {[%clk 0:00:26.2]}
29. Kh2 {[%clk 0:01:29.8]} 29... b6 {[%clk 0:00:25.5]} 30. Qg3 {[%clk
0:00:53.4]} 30... Qxg3+ {[%clk 0:00:22.7]} 31. Kxg3 {[%clk 0:00:54.3]} 31... c5
{[%clk 0:00:23.5]} 32. dxc5 {[%clk 0:00:51.6]} 32... bxc5 {[%clk 0:00:24.4]} 33.
Rc1 {[%clk 0:00:49.3]} 33... Rd5 {[%clk 0:00:24.6]} 34. Kf4 {[%clk 0:00:49.6]}
34... g6 {[%clk 0:00:16]} 35. Rcc4 {[%clk 0:00:43]} 35... Kg7 {[%clk 0:00:16.4]}
36. Ra4 {[%clk 0:00:41.1]} 36... Rd2 {[%clk 0:00:16.7]} 37. Rxa5 {[%clk
0:00:38.8]} 37... Rxb2 {[%clk 0:00:17]} 38. Rxc5 {[%clk 0:00:38.7]} 38... Rb3
{[%clk 0:00:17.5]} 39. Re3 {[%clk 0:00:38.1]} 39... Reb7 {[%clk 0:00:16.8]} 40.
Rcc3 {[%clk 0:00:35.2]} 40... Rb1 {[%clk 0:00:15.2]} 41. e6 {[%clk 0:00:33.3]}
41... Rf1+ {[%clk 0:00:12.9]} 42. Kg3 {[%clk 0:00:33.1]} 42... fxe6 {[%clk
0:00:08.7]} 43. Rxe6 {[%clk 0:00:34]} 43... Rbb1 {[%clk 0:00:08.5]} 44. Kh4
{[%clk 0:00:32.3]} 44... Rf4 {[%clk 0:00:05.9]} 45. Kg5 {[%clk 0:00:29.9]} 45...
Rf7 {[%clk 0:00:02.1]} 46. Rxg6+ {[%clk 0:00:30]} 46... Kf8 {[%clk 0:00:02.6]}
47. Rc8+ {[%clk 0:00:28.8]} 47... Ke7 {[%clk 0:00:03.2]} 48. Rc7+ {[%clk
0:00:29.4]} 48... Ke8 {[%clk 0:00:03.7]} 49. Rxf7 {[%clk 0:00:29.8]} 49... Kxf7
{[%clk 0:00:04.6]} 50. Rf6+ {[%clk 0:00:27.5]} 50... Kg7 {[%clk 0:00:04.7]} 51.
Rf3 {[%clk 0:00:27.2]} 51... Rb5+ {[%clk 0:00:04.6]} 52. Kh4 {[%clk 0:00:26.5]}
52... Kg6 {[%clk 0:00:05]} 53. Rc3 {[%clk 0:00:26.1]} 53... Ra5 {[%clk
0:00:05.1]} 54. Rb3 {[%clk 0:00:23.9]} 54... Kh6 {[%clk 0:00:04.6]} 55. Kg3
{[%clk 0:00:19.6]} 55... Kg6 {[%clk 0:00:04.8]} 56. h4 {[%clk 0:00:20.1]} 56...
Rc5 {[%clk 0:00:04.3]} 57. Rb6+ {[%clk 0:00:19.1]} 57... Kg7 {[%clk 0:00:04.4]}
58. h5 {[%clk 0:00:19.6]} 58... Rc3+ {[%clk 0:00:04.8]} 59. Kh4 {[%clk
0:00:20.2]} 59... Rxa3 {[%clk 0:00:05.3]} 60. Rb7+ {[%clk 0:00:19.2]} 60... Kg8
{[%clk 0:00:04.3]} 61. h6 {[%clk 0:00:19.3]} 61... Ra1 {[%clk 0:00:04.8]} 62.
Kh5 {[%clk 0:00:19.1]} 62... Ra5+ {[%clk 0:00:02.6]} 63. g5 {[%clk 0:00:18.5]}
63... Ra6 {[%clk 0:00:03.2]} 64. g6 {[%clk 0:00:15.6]} 64... Ra5+ {[%clk
0:00:03.7]} 65. Kg4 {[%clk 0:00:16]} 65... Ra4+ {[%clk 0:00:04]} 66. Kf5 {[%clk
0:00:15.9]} 66... Ra5+ {[%clk 0:00:04.5]} 67. Ke4 {[%clk 0:00:16.1]} 67... Ra4+
{[%clk 0:00:04.8]} 68. Kd5 {[%clk 0:00:16.3]} 68... Ra5+ {[%clk 0:00:05.3]} 69.
Kc4 {[%clk 0:00:15.7]} 69... Ra8 {[%clk 0:00:05.5]} 70. Kb5 {[%clk 0:00:14.9]}
70... Rf8 {[%clk 0:00:05.4]} 71. Rc7 {[%clk 0:00:11.3]} 71... Rf5+ {[%clk
0:00:05.3]} 72. Rc5 {[%clk 0:00:10.2]} 72... Rf8 {[%clk 0:00:05.5]} 73. Kb6
{[%clk 0:00:10.7]} 73... Rf6+ {[%clk 0:00:05.3]} 74. Rc6 {[%clk 0:00:11.2]}
74... Rf8 {[%clk 0:00:06.2]} 75. Kb7 {[%clk 0:00:11.5]} 75... Re8 {[%clk
0:00:06.4]} 76. Rc8 {[%clk 0:00:11.6]} 1-0

[Event "Early-Titled-Tuesday-Blitz-July-09-2024"]
[Site "Chess.com"]
[Date "2024.07.09"]
[Round "5"]
[White "Rosh1610"]
[Black "ansko1999"]
[Result "0-1"]
[WhiteElo "2461"]
[BlackElo "2629"]
[TimeControl "180+1"]
[EndTime "8:59:51 PDT"]
[Termination "ansko1999 won on time"]

1. e4 {[%clk 0:03:00.9]} 1... c5 {[%clk 0:02:59.8]} 2. Nf3 {[%clk 0:03:00]} 2...
Nf6 {[%clk 0:02:59.4]} 3. e5 {[%clk 0:02:56.2]} 3... Nd5 {[%clk 0:02:59.9]} 4.
Nc3 {[%clk 0:02:55.2]} 4... e6 {[%clk 0:02:59.3]} 5. Nxd5 {[%clk 0:02:52.9]}
5... exd5 {[%clk 0:03:00.2]} 6. c3 {[%clk 0:02:52.2]} 6... d6 {[%clk 0:02:55.9]}
7. d4 {[%clk 0:02:52.5]} 7... Nc6 {[%clk 0:02:53]} 8. Bb5 {[%clk 0:02:47.7]}
8... cxd4 {[%clk 0:02:49.2]} 9. Bxc6+ {[%clk 0:02:44.6]} 9... bxc6 {[%clk
0:02:49.3]} 10. cxd4 {[%clk 0:02:45.2]} 10... dxe5 {[%clk 0:02:49]} 11. Nxe5
{[%clk 0:02:45.1]} 11... Bd6 {[%clk 0:02:28.9]} 12. O-O {[%clk 0:02:41.9]} 12...
O-O {[%clk 0:02:27.5]} 13. Bf4 {[%clk 0:02:32.1]} 13... Qf6 {[%clk 0:02:20.6]}
14. Bg3 {[%clk 0:02:26.2]} 14... c5 {[%clk 0:02:15.7]} 15. Re1 {[%clk
0:01:23.1]} 15... c4 {[%clk 0:01:51.7]} 16. Qd2 {[%clk 0:01:17.5]} 16... Bf5
{[%clk 0:01:46.4]} 17. Nc6 {[%clk 0:01:04.4]} 17... Bxg3 {[%clk 0:01:24.8]} 18.
Ne7+ {[%clk 0:01:03.6]} 18... Kh8 {[%clk 0:01:24.9]} 19. hxg3 {[%clk 0:01:03]}
19... Be4 {[%clk 0:01:18.1]} 20. f3 {[%clk 0:01:03.2]} 20... Qxe7 {[%clk
0:01:16.6]} 21. fxe4 {[%clk 0:01:03.2]} 21... dxe4 {[%clk 0:01:17.2]} 22. Qc2
{[%clk 0:01:03.2]} 22... f5 {[%clk 0:01:12.8]} 23. g4 {[%clk 0:00:50.4]} 23...
fxg4 {[%clk 0:01:03.6]} 24. Rxe4 {[%clk 0:00:41.8]} 24... Qh4 {[%clk 0:01:00.9]}
25. Qe2 {[%clk 0:00:34]} 25... Rab8 {[%clk 0:00:41.1]} 26. Rc1 {[%clk
0:00:25.7]} 26... Qg5 {[%clk 0:00:26.5]} 27. Rxc4 {[%clk 0:00:20]} 27... g3
{[%clk 0:00:27]} 28. Rc5 {[%clk 0:00:12.2]} 28... Qh6 {[%clk 0:00:27]} 29. Rh5
{[%clk 0:00:12.3]} 29... Qc1+ {[%clk 0:00:25.9]} 30. Qe1 {[%clk 0:00:12]} 30...
Qxe1+ {[%clk 0:00:13.4]} 31. Rxe1 {[%clk 0:00:12.9]} 31... Rxb2 {[%clk
0:00:13.8]} 32. Ra5 {[%clk 0:00:12.8]} 32... h6 {[%clk 0:00:12.6]} 33. Rxa7
{[%clk 0:00:12.7]} 33... Rff2 {[%clk 0:00:13.2]} 34. Re8+ {[%clk 0:00:12.2]}
34... Kh7 {[%clk 0:00:13.5]} 35. Re1 {[%clk 0:00:04.2]} 35... Rxg2+ {[%clk
0:00:13.8]} 36. Kh1 {[%clk 0:00:04.2]} 36... Rh2+ {[%clk 0:00:14.4]} 37. Kg1
{[%clk 0:00:04.6]} 37... Rbg2+ {[%clk 0:00:14.6]} 38. Kf1 {[%clk 0:00:05.1]}
38... Rxa2 {[%clk 0:00:08.3]} 39. Rxa2 {[%clk 0:00:02.2]} 39... Rxa2 {[%clk
0:00:09.2]} 40. Rd1 {[%clk 0:00:02.5]} 40... Kg8 {[%clk 0:00:08.3]} 41. d5
{[%clk 0:00:02.7]} 41... Kf7 {[%clk 0:00:07.9]} 42. d6 {[%clk 0:00:03.2]} 42...
Ra8 {[%clk 0:00:08]} 43. Kg1 {[%clk 0:00:03.4]} 43... Rd8 {[%clk 0:00:07.8]} 44.
Kg2 {[%clk 0:00:03.6]} 44... Ke6 {[%clk 0:00:08.4]} 45. Kxg3 {[%clk 0:00:03.9]}
45... Rxd6 {[%clk 0:00:09]} 46. Rf1 {[%clk 0:00:03.1]} 46... Rd5 {[%clk
0:00:08.5]} 47. Kg4 {[%clk 0:00:03.4]} 47... Ke7 {[%clk 0:00:07.7]} 48. Rf2
{[%clk 0:00:03.1]} 48... Ke6 {[%clk 0:00:07.9]} 49. Rf1 {[%clk 0:00:03.4]} 49...
Rg5+ {[%clk 0:00:08.2]} 50. Kh4 {[%clk 0:00:02.9]} 50... Rf5 {[%clk 0:00:08.9]}
51. Re1+ {[%clk 0:00:03.5]} 51... Kf6 {[%clk 0:00:09.4]} 52. Ra1 {[%clk
0:00:03.5]} 52... Rf4+ {[%clk 0:00:09.2]} 53. Kg3 {[%clk 0:00:02.7]} 53... Re4
{[%clk 0:00:09.6]} 54. Ra6+ {[%clk 0:00:03.1]} 54... Kf5 {[%clk 0:00:09.7]} 55.
Ra5+ {[%clk 0:00:03.3]} 55... Re5 {[%clk 0:00:10.1]} 56. Ra7 {[%clk 0:00:03.5]}
56... g5 {[%clk 0:00:10.3]} 57. Rf7+ {[%clk 0:00:04]} 57... Kg6 {[%clk
0:00:10.5]} 58. Rf1 {[%clk 0:00:04.5]} 58... Re4 {[%clk 0:00:10.5]} 59. Ra1
{[%clk 0:00:03.9]} 59... Kf5 {[%clk 0:00:10.6]} 60. Ra3 {[%clk 0:00:04.5]} 60...
h5 {[%clk 0:00:10.4]} 61. Ra5+ {[%clk 0:00:04.7]} 61... Re5 {[%clk 0:00:10.9]}
62. Ra3 {[%clk 0:00:04.7]} 62... h4+ {[%clk 0:00:11.2]} 63. Kh3 {[%clk 0:00:05]}
63... Kf4 {[%clk 0:00:11.4]} 64. Ra4+ {[%clk 0:00:05.3]} 64... Re4 {[%clk
0:00:11.8]} 65. Ra5 {[%clk 0:00:05.4]} 65... Re3+ {[%clk 0:00:12.2]} 66. Kg2
{[%clk 0:00:05.5]} 66... g4 {[%clk 0:00:11.6]} 67. Ra4+ {[%clk 0:00:05.9]} 67...
Re4 {[%clk 0:00:12]} 68. Ra2 {[%clk 0:00:05.6]} 68... h3+ {[%clk 0:00:12.5]} 69.
Kh2 {[%clk 0:00:04.5]} 69... Kf3 {[%clk 0:00:10.6]} 70. Ra3+ {[%clk 0:00:04.5]}
70... Re3 {[%clk 0:00:11]} 71. Ra1 {[%clk 0:00:03.8]} 71... Re2+ {[%clk
0:00:11.3]} 72. Kh1 {[%clk 0:00:03.7]} 72... g3 {[%clk 0:00:08.8]} 73. Rf1+
{[%clk 0:00:04.1]} 73... Kg4 {[%clk 0:00:08.2]} 74. Ra1 {[%clk 0:00:04]} 74...
Re4 {[%clk 0:00:04.7]} 75. Rf1 {[%clk 0:00:03.8]} 75... h2 {[%clk 0:00:03.8]}
76. Ra1 {[%clk 0:00:01.8]} 76... Kh3 {[%clk 0:00:03.9]} 0-1

[Event "Early-Titled-Tuesday-Blitz-July-09-2024"]
[Site "Chess.com"]
[Date "2024.07.09"]
[Round "5"]
[White "Resourchess"]
[Black "KhamzinOlzhas"]
[Result "0-1"]
[WhiteElo "2379"]
[BlackElo "2573"]
[TimeControl "180+1"]
[EndTime "9:00:03 PDT"]
[Termination "KhamzinOlzhas won on time"]

1. d4 {[%clk 0:03:00.9]} 1... Nf6 {[%clk 0:02:59.6]} 2. c4 {[%clk 0:03:00.3]}
2... g6 {[%clk 0:02:59.8]} 3. f3 {[%clk 0:02:59.9]} 3... Bg7 {[%clk 0:02:59.2]}
4. e4 {[%clk 0:02:58.9]} 4... d6 {[%clk 0:02:59.7]} 5. Nc3 {[%clk 0:02:58.4]}
5... O-O {[%clk 0:02:58.9]} 6. Be3 {[%clk 0:02:58.3]} 6... Nc6 {[%clk
0:02:53.5]} 7. Nge2 {[%clk 0:02:58.3]} 7... Rb8 {[%clk 0:02:52.3]} 8. Rc1 {[%clk
0:02:53.1]} 8... Bd7 {[%clk 0:02:52.1]} 9. Nf4 {[%clk 0:02:46.5]} 9... e5 {[%clk
0:02:48.9]} 10. dxe5 {[%clk 0:02:45.3]} 10... dxe5 {[%clk 0:02:46.6]} 11. Nfe2
{[%clk 0:02:37.5]} 11... Be6 {[%clk 0:02:43.9]} 12. b3 {[%clk 0:02:36.7]} 12...
Nb4 {[%clk 0:02:39.2]} 13. Nd5 {[%clk 0:02:08]} 13... Nc6 {[%clk 0:01:43.1]} 14.
Nec3 {[%clk 0:02:00.6]} 14... Nd4 {[%clk 0:01:40.4]} 15. Nxf6+ {[%clk
0:01:37.7]} 15... Bxf6 {[%clk 0:01:40]} 16. Nd5 {[%clk 0:01:37.5]} 16... Bg7
{[%clk 0:01:38.2]} 17. Bd3 {[%clk 0:01:22.1]} 17... c6 {[%clk 0:01:36.6]} 18.
Bxd4 {[%clk 0:01:14.1]} 18... exd4 {[%clk 0:01:31.9]} 19. Nf4 {[%clk 0:01:13.4]}
19... Bd7 {[%clk 0:01:20.6]} 20. O-O {[%clk 0:01:11.8]} 20... Qa5 {[%clk
0:01:07]} 21. Qc2 {[%clk 0:00:57.7]} 21... Bh6 {[%clk 0:01:02.3]} 22. g3 {[%clk
0:00:56.7]} 22... c5 {[%clk 0:00:52.2]} 23. Rce1 {[%clk 0:00:42]} 23... Bxf4
{[%clk 0:00:35.2]} 24. gxf4 {[%clk 0:00:42.1]} 24... Bh3 {[%clk 0:00:32.9]} 25.
Rf2 {[%clk 0:00:40.4]} 25... Qxe1+ {[%clk 0:00:31.8]} 26. Bf1 {[%clk 0:00:39.9]}
26... Bxf1 {[%clk 0:00:29.6]} 27. Rxf1 {[%clk 0:00:40]} 27... Qe3+ {[%clk
0:00:29.8]} 28. Kg2 {[%clk 0:00:40.5]} 28... d3 {[%clk 0:00:29.4]} 29. Qb2
{[%clk 0:00:40.6]} 29... Qe2+ {[%clk 0:00:27.2]} 30. Qxe2 {[%clk 0:00:40.2]}
30... dxe2 {[%clk 0:00:28.1]} 31. Re1 {[%clk 0:00:40.8]} 31... Rbd8 {[%clk
0:00:28.1]} 32. Rxe2 {[%clk 0:00:41.3]} 32... Rd1 {[%clk 0:00:28.6]} 33. f5
{[%clk 0:00:40.3]} 33... Rfd8 {[%clk 0:00:27.8]} 34. Kg3 {[%clk 0:00:40.7]}
34... g5 {[%clk 0:00:25]} 35. f6 {[%clk 0:00:29.1]} 35... h5 {[%clk 0:00:22]}
36. e5 {[%clk 0:00:25.2]} 36... Re8 {[%clk 0:00:20.7]} 37. f4 {[%clk 0:00:17.6]}
37... Kh7 {[%clk 0:00:15.1]} 38. fxg5 {[%clk 0:00:17.3]} 38... Kg6 {[%clk
0:00:15.8]} 39. h4 {[%clk 0:00:16.2]} 39... Rd3+ {[%clk 0:00:15.1]} 40. Kf4
{[%clk 0:00:16]} 40... Rh3 {[%clk 0:00:15]} 41. Ke4 {[%clk 0:00:15]} 41... Rd8
{[%clk 0:00:12.8]} 42. e6 {[%clk 0:00:14.5]} 42... fxe6 {[%clk 0:00:11.7]} 43.
Ke5 {[%clk 0:00:14.6]} 43... Kf7 {[%clk 0:00:11.8]} 44. g6+ {[%clk 0:00:14.6]}
44... Kxg6 {[%clk 0:00:11.8]} 45. Rg2+ {[%clk 0:00:14.4]} 45... Kf7 {[%clk
0:00:11.9]} 46. Rg7+ {[%clk 0:00:14.7]} 46... Kf8 {[%clk 0:00:12.4]} 47. Kxe6
{[%clk 0:00:13.3]} 47... Re3+ {[%clk 0:00:12.6]} 48. Kf5 {[%clk 0:00:13.6]}
48... Rb8 {[%clk 0:00:09.9]} 49. Rh7 {[%clk 0:00:12.1]} 49... Kg8 {[%clk
0:00:09.2]} 50. Rxh5 {[%clk 0:00:12.1]} 50... Rd8 {[%clk 0:00:06.1]} 51. Rg5+
{[%clk 0:00:11.9]} 51... Kf8 {[%clk 0:00:06.3]} 52. h5 {[%clk 0:00:08]} 52...
Re1 {[%clk 0:00:06.3]} 53. h6 {[%clk 0:00:07.9]} 53... Rd2 {[%clk 0:00:04.4]}
54. h7 {[%clk 0:00:06.7]} 54... Rh2 {[%clk 0:00:04.4]} 55. Rg8+ {[%clk
0:00:06.3]} 55... Kf7 {[%clk 0:00:05]} 56. h8=Q {[%clk 0:00:05.9]} 56... Rf1+
{[%clk 0:00:04.5]} 57. Kg4 {[%clk 0:00:04.9]} 57... Rg1+ {[%clk 0:00:03.4]} 58.
Kf3 {[%clk 0:00:04.4]} 58... Rxh8 {[%clk 0:00:03.4]} 59. Rxh8 {[%clk 0:00:04.6]}
59... Kxf6 {[%clk 0:00:03.1]} 60. Rh7 {[%clk 0:00:04.5]} 60... Rb1 {[%clk
0:00:01.5]} 61. Rxb7 {[%clk 0:00:04.3]} 61... Rb2 {[%clk 0:00:01.1]} 62. Ke4
{[%clk 0:00:04.9]} 62... Rxa2 {[%clk 0:00:01.3]} 63. Kd5 {[%clk 0:00:05.4]}
63... a5 {[%clk 0:00:02.2]} 64. Kxc5 {[%clk 0:00:05.8]} 64... Ra3 {[%clk
0:00:02.8]} 65. Rb5 {[%clk 0:00:05.5]} 65... Ke7 {[%clk 0:00:03.2]} 66. Kb6
{[%clk 0:00:05.6]} 66... a4 {[%clk 0:00:02.6]} 67. bxa4 {[%clk 0:00:06.1]} 67...
Rxa4 {[%clk 0:00:03.5]} 68. c5 {[%clk 0:00:06.7]} 68... Kd8 {[%clk 0:00:03.5]}
69. Kc6 {[%clk 0:00:07]} 69... Ra6+ {[%clk 0:00:03.6]} 70. Rb6 {[%clk
0:00:05.8]} 70... Ra1 {[%clk 0:00:04.3]} 71. Rb7 {[%clk 0:00:05.3]} 71... Kc8
{[%clk 0:00:04.3]} 72. Rh7 {[%clk 0:00:05.3]} 72... Kb8 {[%clk 0:00:04.9]} 73.
Rh8+ {[%clk 0:00:05.1]} 73... Ka7 {[%clk 0:00:05.5]} 74. Kc7 {[%clk 0:00:05.6]}
74... Rg1 {[%clk 0:00:04.8]} 75. Rh7 {[%clk 0:00:04.5]} 75... Rg6 {[%clk
0:00:03.4]} 76. c6 {[%clk 0:00:04.7]} 76... Rf6 {[%clk 0:00:02.9]} 77. Rd7
{[%clk 0:00:04.4]} 77... Rf8 {[%clk 0:00:02.3]} 78. Rd8 {[%clk 0:00:02.7]} 78...
Rf7+ {[%clk 0:00:02.8]} 79. Rd7 {[%clk 0:00:03.1]} 79... Rf8 {[%clk 0:00:02.8]}
80. Kd6+ {[%clk 0:00:02.8]} 80... Kb6 {[%clk 0:00:02.9]} 0-1